Cogmind - Beta 10.2 *** ADVENTURER MODE // 2021.10.31 @ 15:48:51 Player: PersmaticCoreSerial_K4E2 Result: Destroyed by 8R-AWN with 8R-AWN's Boregun Performance ------------- Evolutions (0) 0 Regions Visited (3) 600 Robots Destroyed (13) 65 Value Destroyed (168) 168 Prototype IDs (0) 0 Alien Tech Used (0) 0 Bonus (0) 0 TOTAL SCORE: 833 Bonus ------- None Cogmind --------- Core Integrity 0/250 Matter 30/300 Energy 265/265 System Corruption 1% Temperature Cool (0) Movement Core (1250) Ox24 Location -10/Exiles Parts ------- > --- POWER (1) -------- Reinforced Ion Engine > --- PROPULSION (2) --- (None) > --- UTILITY (2) ------ High-capacity Storage Unit High-capacity Storage Unit > --- WEAPON (2) ------- (None) > --- INVENTORY (20) --- Fission Core Large Storage Unit Large Storage Unit High-capacity Matter Pod (200) High-capacity Matter Pod (163) High-capacity Matter Pod (0) Targeting Computer Decoy Drone Bay Mining Claw Peak State ------------ > --- POWER ------------ Reinforced Ion Engine > --- PROPULSION ------- Wheel Wheel > --- UTILITY ---------- Large Storage Unit Improved Terrain Scanner > --- WEAPON ----------- Grenade Launcher Rocket Launcher > --- INVENTORY -------- Reinforced Ion Engine Large Storage Unit Medium Matter Pod Targeting Computer Decoy Drone Bay Rocket Launcher Rocket Launcher Rocket Launcher Mining Claw [Rating: 12] Favorites ----------- Power Light Ion Engine Engine Light Ion Engine Propulsion Aluminum Leg Leg Aluminum Leg Wheel Wheel Utility Improved Terrain Scanner Device Improved Terrain Scanner Storage High-capacity Storage Unit Processor Seismic Analyzer Weapon Grenade Launcher Energy Gun Small Laser Ballistic Gun Assault Rifle Launcher Grenade Launcher Special Weapon Mining Laser Build | -11 -10 -10 -10 ------- Run | Scr Mat Min Exi Slots Evolved . | . . . . Power . | . . . . Propulsion . | . . . . Utility . | . . . . Weapon . | . . . . Parts Attached 35 | 8 20 . 7 Power 7 | 1 5 . 1 Engine 7 | 1 5 . 1 Core . | . . . . Reactor . | . . . . Propulsion 7 | 2 5 . . Treads . | . . . . Leg 2 | 2 . . . Wheel 5 | . 5 . . Hover . | . . . . Flight . | . . . . Utility 7 | 3 1 . 3 Device 1 | 1 . . . Storage 5 | 1 1 . 3 Processor 1 | 1 . . . Hackware . | . . . . Protection . | . . . . Artifact . | . . . . Weapon 14 | 2 9 . 3 Energy Gun 2 | 1 1 . . Energy Cannon . | . . . . Ballistic Gun 2 | 1 1 . . Ballistic Cannon . | . . . . Launcher 9 | . 6 . 3 Special Weapon 1 | . 1 . . Impact Weapon . | . . . . Slashing Weapon . | . . . . Piercing Weapon . | . . . . Special Melee Weapon . | . . . . Unidentified Prototypes . | . . . . Parts Lost 6 | . . 1 5 Power . | . . . . Propulsion 2 | . . . 2 Utility 1 | . . 1 . Weapon 3 | . . . 3 Highest Loss Streak 5 | . . 1 5 Average Slot Usage (%) 95 | . 98 96 91 Engine 13 | . 13 14 14 Leg 14 | . 24 . . Wheel 12 | . 2 28 26 Device 8 | . 14 10 . Storage 10 | . 2 14 22 Processor 6 | . 11 . . Energy Gun 2 | . 3 . . Ballistic Gun 5 | . 8 . . Launcher 15 | . 7 28 27 Special Weapon 4 | . 7 . . Naked Turns . | . . . . Heaviest Build 82 | 10 34 34 82 Greatest Support 20 | 20 20 20 20 Greatest Overweight (x) 27 | 2 11 1 27 Average Overweight (x) 1 | . . 1 2 Largest Inventory Capacity 20 | 6 10 10 20 Average Capacity 8 | 5 5 10 15 Most Carried 13 | 6 10 10 13 Average Carried 7 | 3 4 9 11 Final Capacity 20 | 4 10 10 20 Final Carried 10 | 4 10 10 10 Class Distribution -------------------- 81% | Mutant 18% | Hauler-Mutant Dominant Class ---------------- Mutant | -10/Materials Mutant | -10/Mines Hauler-Mutant | -10/Exiles Resources | -11 -10 -10 -10 ----------- Run | Scr Mat Min Exi Matter Collected 879 | 322 120 . 437 Remotely . | . . . . Salvage Created 334 | 165 153 . 16 Parts 21 | 9 12 . . Haulers Intercepted . | . . . . Recyclers Shooed 1 | . 1 . . Parts Field Recycled . | . . . . Retrieved Matter . | . . . . Parts Self-Destructed . | . . . . Prevented . | . . . . Kills | -11 -10 -10 -10 ------- Run | Scr Mat Min Exi Combat Hostiles Destroyed 13 | . 6 . 7 AOE 13 | . 6 . 7 Classes Destroyed 6 | 3 2 . 1 Worker 2 | 2 . . . Tunneler 2 | 2 . . . Recycler 3 | 1 2 . . Swarmer 5 | . 5 . . Grunt 1 | . 1 . . Assembled 7 | . . . 7 Best Kill Streak 7 | 3 7 . 6 Combat Bots Only 6 | . 3 . 6 Max Kills in Single Turn 3 | 1 2 . 3 Gunslinging . | . . . . Exploded 3 | . 2 . 3 Melee . | . . . . Uniques/NPCs Destroyed . | . . . . Combat | -11 -10 -10 -10 -------- Run | Scr Mat Min Exi Damage Taken 885 | . 131 38 716 Core 253 | . 4 . 249 Absorbed by Shields . | . . . . Core Remaining (%) 100 | 100 . . . Volleys Fired 50 | 14 19 1 16 Largest 2 | 2 2 2 2 Hottest 100 | 60 100 63 63 Shots Fired 77 | 28 24 2 23 Gun 35 | 28 7 . . Cannon . | . . . . Launcher 35 | . 10 2 23 Special 7 | . 7 . . Kinetic 21 | 14 7 . . Thermal 21 | 14 7 . . Explosive 35 | . 10 2 23 Electromagnetic . | . . . . Robot Hit Streak 17 | 9 4 . 17 Robot Miss Streak 1 | 1 1 . . Penetration Max . | . . . . Secondary Targets . | . . . . Shots Hit Robots 39 | 21 2 . 16 Core Hits 36 | 6 12 . 18 Critical Hits . | . . . . Critical Kills . | . . . . Critical Parts Destroyed . | . . . . Melee Attacks . | . . . . Impact . | . . . . Slashing . | . . . . Piercing . | . . . . Sneak Attacks . | . . . . Combat Hostiles . | . . . . Follow-up Attacks . | . . . . Damage Inflicted 1366 | 248 569 . 549 Guns 260 | 248 12 . . Cannons . | . . . . Explosions 1106 | . 557 . 549 Melee . | . . . . Ramming . | . . . . Kinetic 158 | 146 12 . . Thermal 163 | 102 61 . . Explosive 1045 | . 496 . 549 Electromagnetic . | . . . . Impact . | . . . . Slashing . | . . . . Piercing . | . . . . Highest Corruption 1 | . 1 1 1 Average Corruption 1 | . 1 1 1 Corruption Purged . | . . . . Effects 4 | . 1 . 3 Message Errors 1 | . 1 . . Energy Discharges 1 | . . . 1 Data Loss (minor) 2 | . . . 2 Overload Shots . | . . . . Overflow Damage 44 | . 6 3 35 Projectiles . | . . . . Explosions 44 | . 6 3 35 Melee . | . . . . Knockbacks . | . . . . Impact . | . . . . Kinetic . | . . . . Secondary . | . . . . Self-Inflicted Damage 85 | . 47 38 . Shots 4 | . 2 2 . Rammed . | . . . . Targets Rammed . | . . . . Kicked . | . . . . Crushed . | . . . . Highest Temperature 87 | . 24 15 87 Average Temperature 23 | . 11 10 39 Received Heat Transfer 18 | . 18 . . Siege Activations . | . . . . Robots Corrupted . | . . . . Combat Hostiles . | . . . . Parts Fried . | . . . . Impact Corruptions . | . . . . Robots Melted . | . . . . Combat Hostiles . | . . . . Parts Melted . | . . . . Heat Transferred 325 | 225 100 . . Parts Sabotaged . | . . . . Parts Stolen . | . . . . Parts Stripped . | . . . . Power Chain Reactions . | . . . . Missiles Intercepted . | . . . . Alert | -11 -10 -10 -10 ------- Run | Scr Mat Min Exi Peak Influence 134 | 25 134 . . Initial 13 | . 13 . . Average 11 | 10 12 . . Maximum Alert Level . | . . . . Low Security (%) 100 | 100 100 100 . Level 1 . | . . . . Level 2 . | . . . . Level 3 . | . . . . Level 4 . | . . . . Level 5 . | . . . . High Security . | . . . . Max Security . | . . . . Squads Dispatched . | . . . . Investigation . | . . . . Extermination . | . . . . Reinforcement . | . . . . Assault . | . . . . Garrison . | . . . . Intercept . | . . . . Construction Impeded . | . . . . Haulers Reinforced . | . . . . Stealth | -11 -10 -10 -10 --------- Run | Scr Mat Min Exi Distress Signals 1 | . 1 . . Communications Jammed . | . . . . Distress Signals . | . . . . Times Spotted 16 | . 9 . 7 Peak Tracking Total 9 | . 5 . 9 Tactical Retreats 4 | . 2 . 2 Traps | -11 -10 -10 -10 ------- Run | Scr Mat Min Exi Traps Triggered 4 | . 4 . . Indirectly . | . . . . Trap Hack Attempts . | . . . . Triggered . | . . . . Disarmed . | . . . . Reprogrammed . | . . . . Reused . | . . . . Traps Extracted . | . . . . Installed . | . . . . Triggered . | . . . . Machines | -11 -10 -10 -10 ---------- Run | Scr Mat Min Exi Machines Disabled 8 | . 5 . 3 Max in Single Turn 2 | . 2 . 2 Machines Sabotaged . | . . . . Garrisons Compromised . | . . . . Overloaded Fab Kills . | . . . . Fab Network Shutdowns . | . . . . Hacking | -11 -10 -10 -10 --------- Run | Scr Mat Min Exi Machines Accessed 7 | . 2 1 4 Terminals 2 | . 2 . . Fabricators . | . . . . Repair Stations . | . . . . Recycling Units . | . . . . Scanalyzers . | . . . . Garrison Access . | . . . . Total Hacks 55 | . 5 1 49 Successful 51 | . 1 1 49 Failed 4 | . 4 . . Catastrophic 2 | . 2 . . Database Lockouts . | . . . . Manual 2 | . . . 2 Terminals 5 | . 5 . . Fabricators . | . . . . Repair Stations . | . . . . Recycling Units . | . . . . Scanalyzers . | . . . . Garrison Access . | . . . . Terminal Hacks 51 | . 1 1 49 Record 49 | . . . 49 Open Door 1 | . . 1 . Unreport Threat 1 | . 1 . . Fabricator Hacks . | . . . . Repair Station Hacks . | . . . . Recycling Unit Hacks . | . . . . Scanalyzer . | . . . . Garrison Access Hacks . | . . . . Unauthorized Hacks . | . . . . Terminals . | . . . . Fabricators . | . . . . Repair Stations . | . . . . Recycling Units . | . . . . Scanalyzers . | . . . . Garrison Access . | . . . . Data Cores Recovered . | . . . . Used . | . . . . Hacking Detections 2 | . 2 . . Full Trace Events 2 | . 2 . . Feedback Events 1 | . 1 . . Corruption 1 | . 1 . . Feedback Blocked . | . . . . Robot Schematics Acquired . | . . . . Robots Built . | . . . . Matter . | . . . . Time . | . . . . Total Robot Build Rating . | . . . . Part Schematics Acquired . | . . . . Parts Built . | . . . . Matter . | . . . . Time . | . . . . Total Part Build Rating . | . . . . Parts Repaired . | . . . . Time . | . . . . Parts Recycled . | . . . . Recycled Matter . | . . . . Retrieved Matter . | . . . . Retrieved Components . | . . . . Parts Scanalyzed . | . . . . Part Schematics Acquired . | . . . . Parts Damaged . | . . . . Bothacking | -11 -10 -10 -10 ------------ Run | Scr Mat Min Exi Used RIF Installer . | . . . . Robots Hacked . | . . . . Non-combat . | . . . . Combat . | . . . . Robot Hacks Applied . | . . . . Relay Couplers Released . | . . . . Robots Rewired . | . . . . Allies Hacked . | . . . . Hacks Repelled . | . . . . Allies | -11 -10 -10 -10 -------- Run | Scr Mat Min Exi Total Allies . | . . . . Largest Group . | . . . . Highest-Rated Group . | . . . . Highest-Rated Ally . | . . . . Total Orders . | . . . . Ally Attacks . | . . . . Total Damage . | . . . . Kills . | . . . . Allies Corrupted . | . . . . Allies Melted . | . . . . Intel | -11 -10 -10 -10 ------- Run | Scr Mat Min Exi Robot Analysis Total . | . . . . Derelict Logs Recovered . | . . . . Drone Launches . | . . . . Drone Recoveries . | . . . . Exploration | -11 -10 -10 -10 ------------- Run | Scr Mat Min Exi Turns Passed 2011 | 165 1133 33 680 Spaces Moved 989 | 88 292 31 578 Core 15 | 9 4 . 2 Treads . | . . . . Legs 253 | 79 174 . . Wheels 721 | . 114 31 576 Hover . | . . . . Flight . | . . . . Fastest Speed 50 | 50 80 90 90 Average Speed 111 | 117 117 90 108 Slowest Speed 1400 | 150 600 90 1400 Overloaded Moves . | . . . . Propulsion Burnouts . | . . . . Robots Hopped . | . . . . Cave-ins Triggered . | . . . . Exploration Rate (%) 37 | 6 47 7 88 Regions Visited 3 Branch Regions 2 Pre-discovered Areas 1 | . . . 1 Known Exits Taken . | . . . . Unknown Exits Taken 3 | 1 1 1 . Scrap Searched . | . . . . Spaces Dug 19 | . 7 . 12 Terrain Destroyed 194 | . 127 16 51 Melee . | . . . . Projectile 7 | . 7 . . AOE 187 | . 120 16 51 Terrain Rammed . | . . . . Walls Destroyed . | . . . . Machines Disabled . | . . . . Actions | -11 -10 -10 -10 --------- Run | Scr Mat Min Exi Total 1800 | 118 1038 34 610 Wait 681 | . 681 . . Move 986 | 87 291 30 578 Hop . | . . . . Pick Up 29 | 8 16 1 4 Fast Attach 16 | 6 9 . 1 Attach 5 | 1 . . 4 Detach . | . . . . Swap 14 | 1 11 . 2 Drop 19 | 1 11 2 5 Fire 50 | 14 19 1 16 Melee . | . . . . Ram . | . . . . Kick . | . . . . Crush . | . . . . Escape Stasis . | . . . . Rewire . | . . . . Trap . | . . . . Miscellaneous . | . . . . Route ------- -11/Scrapyard -10/Materials -10/Mines -10/Exiles (discovered 1 exit: [*Min]) History --------- Turn | Location | Event 10 | -11/Scrapyard | Discovered new exit (range 15) 166 | -11/Scrapyard | Entered Materials 301 | -10/Materials | Build established: Mutant 1184 | -10/Materials | Discovered new exit (range 9) 1299 | -10/Materials | Entered Mines 1301 | -10/Mines | Found the Drone Emporium 1307 | -10/Mines | Found Prototype Device 1325 | -10/Mines | Deemed a non-threat by the Exiles lab entrance 1325 | -10/Mines | Discovered new exit (range 5) 1332 | -10/Mines | Entered Exiles 1362 | -10/Exiles | Met 8R-AWN 1376 | -10/Exiles | Met EX-HEX 1421 | -10/Exiles | Met EX-DEC 1451 | -10/Exiles | Visited The Gauntlet 1577 | -10/Exiles | Learned location of Zion (-7) 1650 | -10/Exiles | Discovered new exit (range 14) 1724 | -10/Exiles | Met EX-BIN 1905 | -10/Exiles | Attacked by the Exiles 1937 | -10/Exiles | Build established: Hauler-Mutant 1986 | -10/Exiles | Core integrity fell below 50% 2000 | -10/Exiles | Core integrity fell below 20% 2012 | -10/Exiles | Destroyed by 8R-AWN with 8R-AWN's Boregun Last Messages --------------- 01975_ HV Slug penetrates Machine. 01975_ Penetrated by HV Slug. 01975_ HV Slug penetrates Machine. 01977_ The unstable cave ceiling collapses. 01986_ Penetrated by HV Slug. 01988_ HV Slug penetrates Machine. 01988_ Penetrated by HV Slug. 01988_ Critical hit. 01988_ Wheel destroyed. 01990_ Penetrated by HV Slug. 01990_ HV Slug penetrates Machine. 01993_ Penetrated by HV Slug. 01995_ HV Slug penetrates Machine. 01995_ Machine disabled. 01995_ HV Slug penetrates Wall. 01999_ Penetrated by HV Slug. 02003_ Dropped Rocket Launcher. 02003_ HV Slug penetrates Machine. 02003_ HV Slug penetrates Wall. 02008_ Penetrated by HV Slug. Map ----- +----------------------------------------------------+ | ????????????????????????????#" #??????? | | ????????????????????????????#" ## #??????? | | ????????????????????????????#""""""## #??????? | | ????????????????????????????##"###### #??""""" | | ???????????????????????????? "?????# #??""""" | | ???????????????????????????"""??????# #??""""" | | ???????????????????????????"""?????## ###"" "" | | ???#######??????????????????????##?#" "" | | ???# "#??????????????????????? ?# " | | ???# "#???????????????????????? # " | | ???# "#???????????????????????? # " | | ??## ""#??????????########???????" " | | ###" ""#??????????# """#???????# " | | ##" ""#??????????#"" """#???????#" " | | #"" ! ###??????????#"" #????####" " | | #????????????#"" #????? # "X" " | | ##???????????#"" "#??????# """ | | "#???????????# ""#??????# """"" | | ###?????????#"" ""#??????## ##### | | ##????????### ###??###?# ##?? | | "###"" ######???### ###?##;### # #?? | | "#?##" """#;###X# #"###"" # # #? | | ##??#" " """ " " # ## | | #???#"# " ## #" | | ????#### " g " | | ???????### @] | | ?????????### | | ???????????## | | ????????????## | | ?????????????## | | ??????????????#""" """""" | | ?????????????##" ######""" | | ?????????????#"" ""##????#####""" | | ????????????##""" """##?????????##""" | | ????????????#""" """##???????????#"""" | | ????????????#""" ""#????????????#"" | | ????????????#"" ###?####??????"""" | | ????????????#""" ## ##????? | | ????????????#"" ""???? | | ????????????##"" ??? | | ?????????????#"""" ?? | | ?????????????## ?? | | ??????????????#" " ??"" | | ??????????????#"""" ""#??????"" " " | | ??????????????#"" ""###????????#""" | | ??????????????#" """"##?????????????"" | | ??????????????#""" """#???????????????? | | ??????????????## ""##???????????????? | | ???????????????#"" """##????????????????? | | ???????????????##""" ##?????????????????? | +----------------------------------------------------+ Best States ------------- Heat Dissipation 25 Energy Generation 12 Energy Capacity 265 Matter Stores 300 Matter Capacity 300 Sight Range 16 Terrain Scan Range 16 Terrain Scan Density 60 Resistance: KI 20 Resistance: TH 20 Resistance: EX 20 Resistance: EM 20 Resistance: I 20 Resistance: S 20 Resistance: P 20 Evasion (%) 42 Offensive Hacking 10 Item Schematics ----------------- None Robot Schematics ------------------ None Fabricated ------------ Nothing Alien Tech Used ----------------- None Achievements -------------- Everything Is Under Control Librarian Challenges ------------ None Game ------ Seed SwarmMappingProtection Manual? 0 Play Time 00:24:47 Cumulative 3.3 hours Start 2021.10.31 @ 15:22:57 End 2021.10.31 @ 15:48:51 Sessions 1 Manual Loads 0 Difficulty Adventurer Special Mode None Game No. 6 Rogue 0 Adventurer 6 Explorer 0 Win Type - Total 0 Types 0/0/0/0/0/0/0/0/0 Lore% 10 Gallery% 14 Achievement% 14 Wizard Run 0 Options --------- ASCII 0 Keyboard 0 Movement Mouse Keybinds 0 Fullscreen 1 Font 18/SmallcapsGlow Map View 76x50 Tactical HUD 1 Map Filters NONE Filters NONE Steam 1 RUN: b2048113-9e81-4503-99a9-865134082346